bitfinex/quotes_SOLUSD_20240918
["timestamp","ask_amount","ask_price","bid_price","bid_amount"]
[1726686332592,7.0676042,130.72,130.57,20.0]
[1726686332898,7.92000228,130.69,130.63,19.1376]
[1726686333091,1.32835516,130.71,130.61,7.6559]
[1726686333092,8.97885516,130.71,130.61,7.6559]
[1726686333286,16.89946964,130.71,130.62,7.6557]
[1726686333486,16.89946964,130.71,130.63,7.6551]
[1726686333487,9.24896964,130.71,130.63,7.6551]
[1726686333698,7.92061448,130.71,130.62,19.1389]
[1726686333907,7.92061448,130.71,130.65,19.134]
[1726686334185,7.92061448,130.71,130.57,20.0]
[1726686334390,65.57161448,130.71,130.61,7.6562]
[1726686334689,7.92061448,130.71,130.6,19.1416]
[1726686334914,7.6517,130.69,130.6,19.1416]
[1726686335097,0.25098,130.7,130.62,7.6553]
[1726686335424,0.25098,130.7,130.62,7.6556]
[1726686335708,7.92061448,130.71,130.62,7.6556]
[1726686335894,7.92061448,130.71,130.63,19.1372]
[1726686336093,7.92061448,130.71,130.65,7.6538]
[1726686336293,7.92061448,130.71,130.67,7.6525]
[1726686336706,7.92061448,130.71,130.67,7.6523]
[1726686336888,0.5137042,130.72,130.66,19.1331]
[1726686337095,0.5137042,130.72,130.67,7.6523]
[1726686337389,0.5137042,130.72,130.66,19.1331]
[1726686338011,0.5137042,130.72,130.66,26.7865]
[1726686338193,0.5137042,130.72,130.67,7.6525]
[1726686338512,0.5137042,130.72,130.58,15.56]
[1726686338697,0.5137042,130.72,130.59,7.6575]
[1726686338698,7.6522,130.68,130.59,7.6575]
[1726686338897,20.5137042,130.72,130.58,34.7041]
[1726686339115,20.5137042,130.72,130.61,19.1408]
[1726686339416,0.25098,130.7,130.61,19.1408]
[1726686339716,0.37647,130.7,130.64,19.1362]
[1726686340313,0.12549,130.71,130.64,19.1362]
[1726686340686,0.12549,130.71,130.65,7.6538]
[1726686340909,0.12549,130.71,130.61,19.1408]
[1726686341191,0.12549,130.67,130.6,7.6565]
[1726686341408,0.25098,130.67,130.6,7.6565]
[1726686341610,0.12549,130.67,130.6,7.6565]
[1726686341913,0.12549,130.67,130.58,34.7051]
[1726686341914,7.90398,130.67,130.58,34.7051]
[1726686342216,0.12549,130.63,130.56,7.6588]
[1726686342599,0.12549,130.63,130.56,19.1468]
[1726686342807,0.12549,130.63,130.55,7.6594]
[1726686343011,0.12549,130.63,130.53,35.1092]
[1726686343199,0.12549,130.61,130.53,35.1092]
[1726686343400,0.37647,130.61,130.53,19.1524]
[1726686343721,7.78189,130.61,130.53,26.8132]
[1726686344015,0.12549,130.59,130.53,26.8133]
[1726686344213,0.25098,130.6,130.53,19.1524]
[1726686344428,0.12549,130.65,130.55,19.1484]
[1726686344601,20.25098,130.65,130.55,19.1484]
[1726686344794,0.12549,130.62,130.55,19.1484]
[1726686345020,20.25098,130.65,130.57,7.6587]
[1726686345327,7.6535,130.66,130.58,7.6579]
[1726686345619,6.3095,130.67,130.59,19.1425]
[1726686345815,6.3095,130.67,130.52,38.3071]
[1726686345816,7.655,130.64,130.52,38.3071]
[1726686346000,7.6541,130.65,130.56,26.8069]
[1726686346327,7.6552,130.63,130.56,19.1478]
[1726686346533,7.6552,130.63,130.47,10.0]
[1726686346534,0.12549,130.59,130.5,19.1566]
[1726686346750,7.78359,130.59,130.5,26.8193]
[1726686346954,0.12549,130.58,130.5,19.1566]
[1726686347229,0.25098,130.58,130.5,26.8193]
[1726686347406,0.12549,130.57,130.51,7.6621]
[1726686347606,8.04093763,130.57,130.5,26.8191]
[1726686347906,8.04093763,130.57,130.47,57.4835]
[1726686348110,0.12549,130.55,130.48,23.0896]
[1726686348340,0.12549,130.54,130.48,15.4257]
[1726686348628,0.12549,130.54,130.47,19.1612]
[1726686348812,0.12549,130.54,130.48,7.6638]
[1726686349012,0.12549,130.54,130.47,19.1612]
[1726686349013,0.25098,130.56,130.49,7.6633]
[1726686349234,7.91544763,130.57,130.49,19.1574]
[1726686349406,7.91544763,130.57,130.46,19.1625]
[1726686349407,0.25098,130.56,130.46,19.1625]
[1726686349612,0.25098,130.54,130.48,7.6638]
[1726686349814,0.37647,130.56,130.48,19.1591]
[1726686350110,0.37647,130.56,130.49,7.6632]
[1726686350318,7.91038,130.56,130.48,26.823]
[1726686350621,7.91038,130.56,130.49,7.6634]
[1726686350827,0.12549,130.55,130.45,19.1637]
[1726686351018,0.25098,130.54,130.47,7.6645]
[1726686351213,0.25098,130.52,130.44,0.5137042]
[1726686351414,0.12549,130.53,130.44,0.5137042]
[1726686351633,0.25098,130.54,130.47,7.6641]
[1726686351830,7.91148,130.54,130.46,26.827]
[1726686352012,7.91328,130.51,130.44,8.1795042]
[1726686352212,7.91328,130.51,130.44,0.5137042]
[1726686352213,0.25098,130.51,130.44,0.5137042]
[1726686352429,0.25098,130.51,130.44,8.1800042]
[1726686352838,7.78659,130.53,130.45,7.6655]
[1726686353133,20.0,130.56,130.44,19.6790042]
[1726686353134,0.25098,130.5,130.44,19.6790042]
[1726686353338,19.1505,130.55,130.44,19.6790042]
[1726686353339,20.0,130.54,130.44,19.6790042]
[1726686353547,9.99991123,130.43,130.28,36.7991042]
[1726686353708,1.3,130.44,130.29,63.37467198]
[1726686353910,1.3,130.44,130.27,16.2854]
[1726686353911,0.12549,130.43,130.27,16.2854]
[1726686354114,9.99991123,130.42,130.27,16.2854]
[1726686354344,9.99991123,130.42,130.27,9.1654]
[1726686354520,0.12549,130.43,130.27,9.1654]
[1726686354716,9.99991123,130.41,130.33,19.1816]
[1726686354920,9.99991123,130.41,130.29,38.3748]
[1726686354921,9.99991123,130.38,130.3,7.6742]
[1726686355351,9.99991123,130.36,130.29,19.1876]
[1726686355511,9.99991123,130.34,130.27,9.1654]
[1726686355719,10.25089123,130.37,130.27,9.1654]
[1726686356016,10.25089123,130.37,130.29,7.6749]
[1726686356234,9.99991123,130.37,130.28,19.1883]
[1726686356443,9.99991123,130.37,130.29,7.6749]
[1726686356737,9.99991123,130.41,130.24,63.37467198]
[1726686356942,1.3,130.44,130.32,20.0]
[1726686357242,1.3,130.44,130.4,7.6686]
[1726686357755,1.3,130.44,130.38,7.6695]
[1726686357934,1.3,130.44,130.39,7.6691]
[1726686358237,1.3,130.44,130.37,19.1749]
[1726686358443,1.3,130.44,130.38,7.6697]
[1726686358944,1.3,130.44,130.41,7.668]
[1726686359117,1.3,130.44,130.37,19.1749]
[1726686359541,17.92313539,130.47,130.37,19.1749]
[1726686360039,17.92313539,130.47,130.39,7.6688]
[1726686360432,7.92322416,130.47,130.41,7.668]
[1726686360746,9.99991123,130.46,130.37,19.1749]
[1726686360949,9.99991123,130.42,130.35,16.5331]
[1726686361328,9.99991123,130.39,130.33,19.1817]
[1726686361530,9.99991123,130.37,130.29,34.3335]
[1726686362245,9.99991123,130.39,130.32,7.673]
[1726686362456,9.99991123,130.36,130.29,34.3335]
[1726686362826,9.99991123,130.34,130.25,19.1933]
[1726686363731,7.79559,130.38,130.29,7.6751]
[1726686363732,9.99991123,130.36,130.29,7.6751]
[1726686363929,9.99991123,130.34,130.28,19.1884]
[1726686364325,9.99991123,130.32,130.24,26.8726]
[1726686364532,9.99991123,130.3,130.24,19.1948]
[1726686364854,9.99991123,130.3,130.23,22.8088]
[1726686365233,9.99991123,130.32,130.23,34.3256]
[1726686365556,9.99991123,130.35,130.26,19.1913]
[1726686365852,9.99991123,130.35,130.26,26.8677]
[1726686366035,9.99991123,130.31,130.26,19.1913]
[1726686366236,9.99991123,130.31,130.24,7.678]
[1726686366650,9.99991123,130.31,130.22,19.1973]
[1726686366651,9.99991123,130.26,130.2,0.5137042]
[1726686366854,6.6602,130.32,130.2,0.5137042]
[1726686366855,9.99991123,130.28,130.2,0.5137042]
[1726686367031,9.99991123,130.32,130.26,7.6769]
[1726686367357,9.99991123,130.34,130.24,19.1947]
[1726686367532,6.6602,130.38,130.2,63.88837618]
[1726686367533,9.99991123,130.32,130.2,63.88837618]
[1726686367850,9.99991123,130.32,130.26,7.6769]
[1726686368042,9.99991123,130.34,130.27,7.6763]
[1726686368259,9.99991123,130.32,130.26,19.1918]
[1726686368438,9.99991123,130.32,130.26,26.8685]
[1726686368754,9.99991123,130.32,130.26,19.1918]
[1726686369138,9.99991123,130.36,130.3,7.6745]
[1726686369333,17.92657985,130.36,130.3,7.6745]
[1726686369528,7.92666862,130.36,130.33,7.6727]
[1726686369935,9.99991123,130.38,130.33,7.6727]
[1726686370134,7.92381874,130.39,130.36,7.6709]
[1726686370335,7.92381874,130.39,130.35,19.1787]
[1726686370637,9.99991123,130.45,130.38,19.1745]
[1726686370854,9.99991123,130.43,130.34,19.1793]
[1726686371031,9.99991123,130.43,130.36,7.671]
[1726686371228,9.99991123,130.43,130.39,7.6692]
[1726686371431,9.99991123,130.43,130.37,19.1755]
[1726686371732,17.9209898,130.45,130.4,19.1714]
[1726686371938,17.9209898,130.45,130.41,7.6676]
[1726686372146,17.9209898,130.45,130.32,38.49019]
[1726686372147,9.99991123,130.41,130.36,19.1762]
[1726686372455,9.99991123,130.41,130.32,38.3647]
[1726686372456,9.99991123,130.38,130.34,7.6722]
[1726686372766,9.99991123,130.38,130.33,7.6722]
[1726686372962,7.9214455,130.39,130.32,19.1823]
[1726686373252,9.99991123,130.44,130.39,7.6689]
[1726686373434,9.99991123,130.44,130.36,19.1773]
[1726686373643,7.91848547,130.44,130.34,63.37467198]
[1726686373839,1289.61135668,130.47,130.34,63.37467198]
[1726686373840,1279.61144545,130.47,130.34,63.37467198]
[1726686374045,1279.61144545,130.47,130.38,20.0]
[1726686374346,1279.61144545,130.47,130.4,20.12549]
[1726686374552,1279.61144545,130.47,130.41,63.37467198]
[1726686374747,0.5137042,130.48,130.47,26.8259]
[1726686375837,0.5137042,130.48,130.47,26.95139]
[1726686376045,0.5137042,130.48,130.47,26.8259]
[1726686377032,0.5137042,130.48,130.47,19.1614]
[1726686377456,0.5137042,130.48,130.47,26.8259]
[1726686378354,0.5137042,130.48,130.47,26.95139]
[1726686378851,0.5137042,130.48,130.47,26.8259]
[1726686379553,0.5137042,130.48,130.47,27.20237]
[1726686379758,394.15526444,130.55,130.47,27.20237]
[1726686379759,394.15526444,130.55,130.51,19.1542]
[1726686380055,394.15526444,130.55,130.48,38.3187]
[1726686380056,394.15526444,130.55,130.48,19.1599]
[1726686380283,394.15526444,130.55,130.45,63.37467198]
[1726686380449,9.99991123,130.53,130.48,7.6639]
[1726686380638,404.15517567,130.55,130.5,7.6626]
[1726686381433,9.99991123,130.52,130.48,19.1587]
[1726686381639,9.99991123,130.52,130.48,26.8222]
[1726686381959,9.99991123,130.52,130.48,19.1587]
[1726686382139,9.99991123,130.52,130.44,38.3303]
[1726686382140,9.99991123,130.52,130.46,7.6647]
[1726686382336,394.15526444,130.55,130.45,19.1642]
[1726686382337,9.99991123,130.5,130.45,26.8299]
[1726686382655,9.99991123,130.44,130.36,44.7643]
[1726686382856,9.99991123,130.47,130.43,7.6668]
[1726686383056,9.99991123,130.49,130.46,7.665]
[1726686383237,9.99991123,130.51,130.47,7.6645]
[1726686383432,9.99991123,130.51,130.4,101.71737198]
[1726686383433,9.99991123,130.51,130.46,7.6646]
[1726686383637,9.99991123,130.47,130.43,7.6669]
[1726686383854,9.99991123,130.47,130.42,7.6674]
[1726686384064,9.99991123,130.49,130.44,7.6662]
[1726686384273,9.99991123,130.45,130.41,19.1688]
[1726686384570,9.99991123,130.45,130.41,26.8368]
[1726686384739,9.99991123,130.45,130.41,26.8366]
[1726686384939,9.99991123,130.47,130.42,7.6672]
[1726686385151,384.19376444,130.48,130.45,7.6655]
[1726686385363,384.19376444,130.48,130.44,7.6663]
[1726686385570,9.99991123,130.47,130.43,19.1663]
[1726686385867,9.99991123,130.44,130.36,44.7643]
[1726686386163,9.99991123,130.47,130.36,44.7643]
[1726686386365,9.99991123,130.45,130.4,7.6686]
[1726686386554,9.99991123,130.45,130.39,26.842]
[1726686386740,9.99991123,130.43,130.38,7.6698]
[1726686386944,9.99991123,130.43,130.39,7.6691]
[1726686387141,9.99991123,130.43,130.38,26.8431]
[1726686387353,9.99991123,130.41,130.35,19.1785]
[1726686387655,9.99991123,130.39,130.35,26.8499]
[1726686388037,9.99991123,130.37,130.33,7.6723]
[1726686388243,9.99991123,130.39,130.34,7.6721]
[1726686388459,9.99991123,130.37,130.31,19.1836]
[1726686389260,9.99991123,130.35,130.31,26.8575]
[1726686389459,9.99991123,130.35,130.31,19.1836]
[1726686389963,9.99991123,130.33,130.31,19.1836]
[1726686390173,9.99991123,130.31,130.27,7.6763]
[1726686390348,56.0327,130.4,130.24,19.1938]
[1726686390349,9.99991123,130.29,130.24,19.1938]
[1726686390866,9.99991123,130.29,130.21,19.1993]
[1726686391054,9.99991123,130.29,130.22,7.6792]
[1726686391242,17.67501123,130.29,130.21,19.1993]
[1726686391447,9.99991123,130.23,130.2,0.5137042]
[1726686391978,9.99991123,130.27,130.2,19.7137042]
[1726686392144,9.99991123,130.27,130.23,7.6787]
[1726686392344,9.99991123,130.27,130.22,26.8764]
[1726686392567,9.99991123,130.25,130.22,19.1972]
[1726686392768,9.99991123,130.27,130.22,19.1972]
[1726686393066,9.99991123,130.31,130.21,63.37467198]
[1726686393276,9.99991123,130.29,130.26,19.1914]
[1726686393458,9.99991123,130.31,130.26,19.1914]
[1726686393775,9.99991123,130.27,130.23,26.8748]
[1726686394182,9.99991123,130.25,130.2,27.3943042]
[1726686394476,9.99991123,130.25,130.2,19.7143042]
[1726686394763,9.99991123,130.24,130.2,19.7143042]
[1726686394970,9.99991123,130.26,130.21,7.6798]
[1726686395290,9.99991123,130.23,130.2,0.5137042]
[1726686395644,9.99991123,130.23,130.2,8.1939042]
[1726686395845,9.99991123,130.23,130.2,0.5137042]
[1726686396347,9.99991123,130.23,130.2,8.1940042]
[1726686396565,9.99991123,130.23,130.21,7.6798]
[1726686396749,7.6745,130.31,130.21,19.1986]
[1726686396750,9.99991123,130.26,130.21,19.1986]
[1726686397059,9.99991123,130.22,130.2,8.1939042]
[1726686397875,9.99991123,130.24,130.21,7.6797]
[1726686398063,9.99991123,130.24,130.2,0.5137042]
[1726686398257,9.99991123,130.24,130.2,8.1936042]
[1726686398462,9.99991123,130.26,130.2,0.5137042]
[1726686398660,9.99991123,130.26,130.23,7.6786]
[1726686398868,9.99991123,130.26,130.21,19.1984]
[1726686399049,9.99991123,130.23,130.21,26.8781]
[1726686399246,9.99991123,130.23,130.2,0.5137042]
[1726686400250,9.99991123,130.21,130.2,0.5137042]
[1726686401375,9.99991123,130.21,130.16,2.08364626]
[1726686401376,9.99991123,130.17,130.16,2.08364626]
[1726686401981,10.25089123,130.17,130.16,2.08364626]
[1726686402162,18.05858123,130.17,130.16,2.08364626]
[1726686402357,9.99991123,130.17,130.16,2.08364626]
[1726686403052,9.99991123,130.19,130.16,2.08364626]
[1726686403259,9.99991123,130.21,130.16,2.08364626]
[1726686403469,9.99991123,130.25,130.16,23.84544626]
[1726686403650,9.99991123,130.27,130.24,7.6781]
[1726686403854,9.99991123,130.29,130.26,7.6769]
[1726686404051,9.99991123,130.29,130.27,7.6763]
[1726686404251,9.99991123,130.29,130.25,26.8702]
[1726686404467,9.99991123,130.26,130.23,7.6787]
[1726686404676,9.99991123,130.26,130.22,19.1977]
[1726686404975,9.99991123,130.26,130.19,38.405]
[1726686405185,9.99991123,130.26,130.21,19.1984]
[1726686405779,9.99991123,130.26,130.23,19.1958]
[1726686405983,9.99991123,130.26,130.2,19.2006]
[1726686406159,9.99991123,130.23,130.18,7.6811]
[1726686406366,69.918,130.3,130.18,7.6811]
[1726686406367,9.99991123,130.21,130.18,7.6811]
[1726686406676,7.677,130.26,130.16,2.08364626]
[1726686406677,9.99991123,130.19,130.16,2.08364626]
[1726686407583,9.99991123,130.17,130.16,2.08364626]
[1726686407955,15.58516865,130.23,130.16,2.08364626]
[1726686407956,9.99991123,130.2,130.16,2.08364626]
[1726686408165,9.99991123,130.2,130.17,7.6821]
[1726686408384,9.99991123,130.2,130.16,2.08364626]
[1726686408385,9.99991123,130.22,130.18,7.6816]
[1726686408854,9.99991123,130.2,130.17,7.6822]
[1726686409054,7.90616865,130.23,130.18,0.67029047]
[1726686409055,9.99991123,130.22,130.18,0.67029047]
[1726686409284,9.99991123,130.22,130.19,7.6808]
[1726686409486,9.99991123,130.22,130.21,26.8796]
[1726686409665,79.91791123,130.24,130.21,19.1997]
[1726686409862,6.0266,130.31,130.18,19.204]
[1726686409863,9.99991123,130.21,130.18,19.204]
[1726686410066,9.99991123,130.24,130.18,19.204]
[1726686410272,7.90401642,130.25,130.23,7.6787]
[1726686410686,9.99991123,130.26,130.23,7.6787]
[1726686411004,9.99991123,130.28,130.25,19.1938]
[1726686411284,9.99991123,130.28,130.26,7.6767]
[1726686411471,9.99991123,130.28,130.25,19.1938]
[1726686411783,9.99991123,130.26,130.22,19.198]
[1726686411987,9.99991123,130.24,130.18,19.2038]
[1726686412189,9.99991123,130.24,130.2,7.6804]
[1726686412377,9.99991123,130.24,130.2,19.2001]
[1726686412682,9.99991123,130.26,130.2,19.2001]
[1726686412892,9.99991123,130.25,130.22,19.1973]
[1726686413089,69.918,130.28,130.27,7.6763]
[1726686413588,9.99991123,130.31,130.3,7.6745]
[1726686413884,9.99991123,130.31,130.28,7.6752]
[1726686414062,9.99991123,130.29,130.27,19.1898]
[1726686414266,9.99991123,130.31,130.27,26.8656]
[1726686414462,9.99991123,130.31,130.29,19.1872]
[1726686414687,9.99991123,130.26,130.21,20.0]
[1726686414983,9.99991123,130.26,130.24,7.678]
[1726686415187,9.99991123,130.28,130.25,19.1929]
[1726686415490,9.99991123,130.3,130.26,1.11314477]
[1726686415663,9.99991123,130.3,130.28,7.6755]
[1726686416067,9.99991123,130.3,130.27,1.11305932]
[1726686416068,9.99991123,130.3,130.29,7.6749]
[1726686416385,9.99991123,130.3,130.27,26.8659]
[1726686416588,9.99991123,130.32,130.27,19.1898]
[1726686416789,9.99991123,130.32,130.31,7.674]
[1726686416971,69.918,130.36,130.31,7.674]
[1726686416972,9.99991123,130.34,130.31,19.1842]
[1726686417171,9.99991123,130.34,130.33,7.6728]
[1726686417482,9.99991123,130.32,130.29,7.675]
[1726686417688,9.99991123,130.32,130.28,19.1892]
[1726686418000,9.99991123,130.3,130.28,19.1892]
[1726686418291,9.99991123,130.3,130.27,7.6762]
[1726686418492,9.99991123,130.3,130.28,7.6757]
[1726686418675,9.99991123,130.3,130.29,7.6751]
[1726686419188,9.99991123,130.3,130.28,7.6756]
[1726686419396,9.99991123,130.3,130.27,19.1895]
[1726686419700,77.81996374,130.36,130.3,19.1864]
[1726686419701,9.99991123,130.32,130.3,19.1864]
[1726686420372,9.99991123,130.32,130.3,26.8608]
[1726686420571,9.99991123,130.29,130.27,26.8661]
[1726686420777,9.99991123,130.29,130.23,38.3907]
[1726686420975,9.99991123,130.25,130.24,19.1943]
[1726686421179,9.99991123,130.27,130.24,26.8724]
[1726686421397,9.99991123,130.27,130.25,7.6773]
[1726686421613,19.1796,130.35,130.21,21.566]
[1726686421614,9.99991123,130.24,130.21,34.6329]
[1726686421786,9.99991123,130.24,130.23,7.6787]
[1726686421977,9.99991123,130.25,130.24,26.8721]
[1726686422174,9.99991123,130.25,130.24,19.1944]
[1726686422486,9.99991123,130.25,130.21,34.633]
[1726686422706,9.99991123,130.19,130.16,2.08364626]
[1726686423086,9.99991123,130.21,130.17,19.2047]
[1726686423484,9.99991123,130.23,130.21,7.6793]
[1726686423683,9.99991123,130.23,130.19,19.2017]
[1726686423886,9.99991123,130.23,130.19,26.8827]
[1726686424084,9.99991123,130.18,130.16,2.08364626]
[1726686426977,9.99991123,130.18,130.16,9.76624626]
[1726686427182,69.918,130.22,130.16,9.76624626]
[1726686427183,9.99991123,130.2,130.19,7.681]
[1726686427383,9.99991123,130.24,130.2,19.2]
[1726686427580,9.99991123,130.24,130.19,63.37467198]
[1726686427881,9.99991123,130.24,130.23,7.6787]
[1726686428084,9.99991123,130.26,130.22,19.1968]
[1726686428282,77.84414115,130.3,130.19,79.69057198]
[1726686428283,9.99991123,130.23,130.19,35.5179]
[1726686428499,9.99991123,130.21,130.2,7.68]
[1726686428692,9.99991123,130.21,130.19,7.6809]
[1726686428894,9.99991123,130.21,130.2,7.6804]
[1726686429103,9.99991123,130.25,130.24,7.6779]
[1726686429385,9.99991123,130.27,130.26,7.6769]
[1726686429587,79.91791123,130.29,130.28,7.6757]
[1726686429787,9.99991123,130.29,130.27,7.6762]
[1726686430084,9.99991123,130.27,130.22,19.1971]
[1726686430290,9.99991123,130.25,130.22,19.1971]
[1726686430592,9.99991123,130.26,130.23,7.6785]
[1726686430908,9.99991123,130.26,130.24,7.6777]
[1726686431115,9.99991123,130.26,130.23,7.6785]
[1726686431284,9.99991123,130.26,130.22,26.8762]
[1726686431488,69.918,130.31,130.22,26.8762]
[1726686431489,9.99991123,130.25,130.23,7.6786]
[1726686431710,9.99991123,130.23,130.22,26.8759]
[1726686431908,69.918,130.31,130.23,7.6786]
[1726686431909,9.99991123,130.25,130.23,7.6786]
[1726686432113,77.592,130.31,130.2,38.4022]
[1726686432114,9.99991123,130.27,130.24,19.1944]
[1726686432322,9.99991123,130.29,130.23,63.37467198]
[1726686432489,79.91791123,130.31,130.3,7.6745]
[1726686432692,9.99991123,130.33,130.32,7.6734]
[1726686432909,9.99991123,130.35,130.32,26.8569]
[1726686433225,69.918,130.36,130.35,26.8497]
[1726686433226,9.99991123,130.36,130.35,26.8497]
[1726686433520,9.99991123,130.36,130.31,63.37467198]
[1726686433702,9.99991123,130.34,130.33,7.6728]
[1726686434006,9.99991123,130.37,130.35,7.6716]
[1726686434310,9.99991123,130.37,130.34,19.1797]
[1726686434504,15.58909122,130.42,130.31,7.6734]
[1726686434505,9.99991123,130.35,130.31,7.6734]
[1726686434813,7.92159122,130.42,130.29,7.6746]
[1726686434814,9.99991123,130.31,130.29,7.6746]
[1726686435407,9.99991123,130.31,130.28,26.8648]
[1726686435587,9.99991123,130.33,130.31,19.1837]
[1726686435787,9.99991123,130.33,130.32,7.6734]
[1726686436015,9.99991123,130.35,130.33,19.1809]
[1726686436185,9.99991123,130.35,130.34,7.6721]
[1726686436387,9.99991123,130.35,130.33,26.8537]
[1726686436726,9.99991123,130.37,130.32,63.37467198]
[1726686436896,9.99991123,130.39,130.37,7.6704]
[1726686437095,9.99991123,130.37,130.35,19.1778]
[1726686437403,21.534,130.47,130.35,19.1778]
[1726686437404,9.99991123,130.39,130.35,19.1778]
[1726686437726,9.99991123,130.39,130.37,7.6704]
[1726686437892,9.99991123,130.39,130.36,7.6708]
[1726686438095,9.99991123,130.39,130.38,7.6698]
[1726686438297,9.99991123,130.39,130.37,19.1747]
[1726686438925,9.99991123,130.38,130.37,7.6704]
[1726686439125,9.99991123,130.38,130.36,26.8485]
[1726686439293,9.99991123,130.36,130.32,19.1826]
[1726686439695,9.99991123,130.32,130.29,26.8621]
[1726686439993,9.99991123,130.34,130.32,7.6729]
[1726686440195,9.99991123,130.37,130.29,63.37467198]
[1726686440497,9.99991123,130.35,130.34,7.6717]
[1726686440698,9.99991123,130.35,130.33,19.1811]
[1726686441094,0.5137042,130.4,130.36,7.671]
[1726686441095,9.99991123,130.37,130.36,7.671]
[1726686441323,9.99991123,130.39,130.38,7.6698]
[1726686441519,0.5137042,130.4,130.35,63.37467198]
[1726686441520,0.5137042,130.4,130.39,7.6692]
[1726686441903,0.5137042,130.4,130.38,7.6698]
[1726686442098,10.51361543,130.4,130.37,26.8455]
[1726686442291,10.51361543,130.4,130.34,63.37467198]
[1726686442292,9.99991123,130.36,130.34,26.8521]
[1726686442604,9.99991123,130.36,130.34,19.18]
[1726686443285,9.99991123,130.36,130.31,6.5407]
[1726686443286,9.99991123,130.36,130.32,7.6733]
[1726686443489,9.99991123,130.36,130.3,16.0981]
[1726686443713,9.99991123,130.36,130.35,7.6716]
[1726686443917,9.99991123,130.36,130.34,7.672]
[1726686444225,9.99991123,130.36,130.35,7.6716]
[1726686444793,9.99991123,130.36,130.34,7.6721]
[1726686445122,0.5137042,130.4,130.33,19.1811]
[1726686445123,9.99991123,130.34,130.33,19.1811]
[1726686445423,9.99991123,130.29,130.26,7.6768]
[1726686445625,9.99991123,130.29,130.25,15.4848]
[1726686445791,9.99991123,130.29,130.26,19.1916]
[1726686446128,9.99991123,130.25,130.2,15.5705]
[1726686446327,9.99991123,130.25,130.23,19.196]
[1726686446626,9.99991123,130.26,130.24,7.6781]
[1726686446794,9.99991123,130.24,130.22,19.1971]
[1726686447130,9.99991123,130.24,130.22,26.8764]
[1726686447293,9.99991123,130.24,130.22,19.1971]
[1726686447492,9.99991123,130.21,130.19,19.2023]
[1726686447794,25.3472,130.33,130.19,19.2023]
[1726686447795,9.99991123,130.22,130.19,19.2023]
[1726686447997,9.99991123,130.22,130.2,7.6804]
[1726686448209,9.99991123,130.22,130.19,19.2023]
[1726686448418,9.99991123,130.22,130.2,7.6804]
[1726686448604,9.99991123,130.2,130.19,19.2023]
[1726686449007,9.99991123,130.22,130.19,19.2023]
[1726686449213,9.99991123,130.2,130.19,19.2023]
[1726686449821,9.99991123,130.2,130.16,41.29054626]
[1726686450120,9.99991123,130.2,130.17,7.6822]
[1726686450415,9.99991123,130.18,130.16,21.29054626]
[1726686450618,9.99991123,130.19,130.18,7.6812]
[1726686451621,9.99991123,130.19,130.18,7.6816]
[1726686451811,9.99991123,130.19,130.16,2.08364626]
[1726686451812,9.99991123,130.19,130.17,7.6821]
[1726686452015,9.99991123,130.19,130.18,7.6816]
[1726686452540,7.94080073,130.25,130.16,84.66391824]
[1726686452541,9.99991123,130.22,130.21,26.8796]
[1726686452839,9.99991123,130.24,130.23,7.6787]
[1726686453197,9.99991123,130.26,130.25,7.6775]
[1726686453398,9.99991123,130.26,130.23,7.6781]
[1726686453619,9.99991123,130.2,130.16,2.08364626]
[1726686453826,9.99991123,130.2,130.18,19.2037]
[1726686453997,9.99991123,130.2,130.19,7.681]
[1726686454201,9.99991123,130.2,130.18,19.2037]
[1726686454508,9.99991123,130.22,130.18,19.2037]
[1726686454704,9.99991123,130.2,130.19,7.681]
[1726686455050,9.99991123,130.22,130.2,19.2005]
[1726686455318,9.99991123,130.22,130.21,7.6799]
[1726686455704,9.99991123,130.22,130.2,26.8807]
[1726686456028,9.99991123,130.18,130.17,19.2049]
[1726686456330,9.99991123,130.18,130.17,26.8871]
[1726686456618,7.93823677,130.3,130.17,26.8871]
[1726686456619,9.99991123,130.2,130.18,7.6811]
[1726686456824,9.99991123,130.2,130.17,19.2049]
[1726686457008,9.99991123,130.2,130.19,7.681]
[1726686457209,9.99991123,130.22,130.21,7.6799]